bitfinex-derivatives/quotes_ETHF0:USTF0_20260305
["timestamp","ask_amount","ask_price","bid_price","bid_amount"]
[1772741716324,0.00477621,2081.7,2081.2,0.58925216]
[1772741717820,0.55418298,2082.5,2081.5,0.58925216]
[1772741718124,0.55418298,2082.3,2081.4,0.58925216]
[1772741718331,0.79429298,2082.2,2081.4,0.58925216]
[1772741718524,0.24011,2082.2,2081.4,0.58925216]
[1772741718926,0.2443637,2082.2,2081.4,0.58925216]
[1772741719126,0.0042537,2082.2,2081.6,0.58925216]
[1772741719726,0.55418298,2082.6,2081.9,0.58925216]
[1772741719926,0.55418298,2083.1,2082.2,0.58925216]
[1772741720327,0.55418298,2083.6,2082.3,0.58925216]
[1772741720534,0.79413298,2083.7,2082.8,0.58925216]
[1772741720827,0.55418298,2083.6,2082.8,0.59383782]
[1772741722423,0.55418298,2083.6,2082.8,0.00458566]
[1772741722424,0.55418298,2083.4,2082.8,0.00458566]
[1772741722827,0.55418298,2083.4,2082.8,0.59383782]
[1772741723029,0.55940862,2083.7,2082.9,0.58925216]
[1772741723634,0.55940862,2083.7,2082.8,3.0521425]
[1772741723635,0.55940862,2083.7,2082.8,0.59383782]
[1772741724337,0.55940862,2083.7,2082.9,0.58925216]
[1772741724730,0.00522564,2083.7,2082.9,0.58925216]
[1772741724933,0.55418298,2084.6,2083.7,0.58925216]
[1772741725838,0.55418298,2084.6,2084.0,0.58925216]
[1772741726036,0.00620096,2084.6,2084.0,0.58925216]
[1772741726238,0.55418298,2085.0,2084.3,0.58925216]
[1772741726439,0.55418298,2085.2,2084.3,0.58925216]
[1772741726640,0.55418298,2085.0,2084.3,0.58925216]
[1772741727036,1.44036164,2084.5,2083.7,0.58925216]
[1772741727241,0.00434089,2084.5,2084.0,0.58925216]
[1772741727434,0.55852387,2084.5,2084.0,0.58925216]
[1772741728036,1.75903551,2084.5,2084.0,0.58925216]
[1772741728437,0.5421677,2084.4,2083.7,0.00355136]
[1772741728736,0.5421677,2084.4,2083.8,0.57663051]
[1772741729138,0.5421677,2084.2,2083.7,0.58018187]
[1772741729434,0.5421677,2084.2,2083.7,0.00355136]
[1772741730043,0.57055886,2083.9,2083.5,0.57663051]
[1772741730436,0.57055886,2083.8,2082.9,0.53819067]
[1772741730639,0.57055886,2083.6,2082.9,0.53819067]
[1772741731131,0.57055886,2083.3,2082.9,0.00429064]
[1772741731334,0.57055886,2083.3,2082.7,0.53819067]
[1772741731335,0.57055886,2083.3,2082.7,0.42040451]
[1772741732240,0.57055886,2083.3,2082.6,0.42040451]
[1772741732439,0.57055886,2083.3,2082.6,0.42663873]
[1772741733140,0.57055886,2083.3,2082.7,0.4319053]
[1772741733439,0.57055886,2083.6,2082.7,0.4319053]
[1772741733637,0.57055886,2083.2,2082.6,0.00623422]
[1772741733840,0.57055886,2083.2,2082.3,3.47946214]
[1772741734036,0.57055886,2083.2,2082.4,0.4319053]
[1772741734236,0.57055886,2083.1,2082.4,0.4319053]
[1772741734439,0.57055886,2082.9,2082.1,0.4319053]
[1772741734641,0.57055886,2082.9,2082.0,26.834]
[1772741734838,0.57652958,2082.9,2082.0,26.83900881]
[1772741735438,0.57055886,2082.7,2082.0,26.83900881]
[1772741735834,0.57055886,2082.7,2082.0,0.00500881]
[1772741736040,0.57055886,2082.5,2082.0,0.00500881]
[1772741736544,0.57055886,2082.3,2081.7,0.44649025]
[1772741737044,0.57055886,2082.5,2081.7,0.44649025]
[1772741737248,0.57055886,2082.3,2081.6,26.841]
[1772741737440,0.57055886,2082.3,2081.6,26.84573832]
[1772741737640,5.90584,2082.6,2081.6,26.84573832]
[1772741737641,1.7710705,2082.1,2081.6,0.00473832]
[1772741737847,0.57055886,2082.1,2081.6,0.4640212]
[1772741738247,1.7710705,2082.0,2081.6,0.00473832]
[1772741738444,0.57055886,2082.0,2081.4,3.50683972]
[1772741738741,0.57055886,2082.0,2081.5,0.45928288]
[1772741739338,0.57055886,2081.9,2081.3,0.4607228]
[1772741739542,0.57055886,2081.9,2081.3,0.46595698]
[1772741739750,0.57055886,2082.1,2081.5,0.4607228]
[1772741740141,0.57055886,2082.1,2081.3,0.00523418]
[1772741740142,0.57055886,2082.7,2081.8,0.4607228]
[1772741740543,1.43561369,2082.7,2082.0,3.50827964]
[1772741740748,0.57055886,2082.7,2081.8,0.4607228]
[1772741741347,0.57055886,2082.5,2081.8,0.4607228]
[1772741741746,0.57055886,2082.3,2081.8,0.4607228]
[1772741742349,1.43561369,2082.3,2081.8,0.4607228]
[1772741743351,0.57055886,2082.8,2082.2,3.50099273]
[1772741743653,0.57055886,2082.8,2082.3,0.45343589]
[1772741743953,1.43561369,2082.7,2082.3,0.45343589]
[1772741744153,1.43561369,2082.7,2082.0,0.45343589]
[1772741744349,0.57055886,2082.6,2082.0,0.45343589]
[1772741744855,0.00597072,2082.9,2082.3,0.45343589]
[1772741744856,0.57652958,2082.9,2082.3,0.45343589]
[1772741745256,0.86505483,2082.7,2082.3,0.45343589]
[1772741745655,0.86505483,2082.6,2082.3,0.45343589]
[1772741745856,0.57652958,2082.9,2082.3,0.45343589]
[1772741746351,0.00597072,2082.9,2082.3,0.45343589]
[1772741746556,0.57055886,2083.3,2082.6,0.45689199]
[1772741747153,0.57055886,2083.1,2082.2,30.34611669]
[1772741747452,0.57645897,2083.1,2082.3,0.45755985]
[1772741748047,0.86505483,2083.0,2082.3,0.45755985]
[1772741748352,0.57055886,2083.0,2082.3,0.45755985]
[1772741748556,0.86505483,2082.9,2082.3,0.45755985]
[1772741748756,0.57055886,2083.0,2082.3,0.45755985]
[1772741749057,0.00590011,2083.1,2082.2,27.29510514]
[1772741749058,1.43561369,2082.7,2082.2,27.29510514]
[1772741749252,0.57055886,2082.7,2081.9,0.45410514]
[1772741749748,0.57055886,2082.3,2081.9,0.45410514]
[1772741750057,0.86505483,2082.6,2081.9,0.45410514]
[1772741750254,0.57055886,2082.5,2081.9,0.45410514]
[1772741750655,1.43561369,2082.4,2081.9,0.45410514]
[1772741750859,0.57055886,2082.4,2081.8,26.832]
[1772741751059,0.86505483,2082.3,2081.8,26.832]
[1772741751258,0.57055886,2082.5,2081.9,0.45989008]
[1772741751461,0.57055886,2082.9,2082.2,0.45989008]
[1772741751662,1.43561369,2082.9,2082.2,0.45989008]
[1772741751858,0.57055886,2082.8,2082.2,0.45989008]
[1772741752059,0.57055886,2082.6,2082.2,0.45989008]
[1772741752260,0.57055886,2082.6,2081.6,40.8]
[1772741752466,0.57055886,2082.6,2081.6,0.45989008]
[1772741752659,0.57055886,2082.3,2081.6,0.45989008]
[1772741753061,0.57055886,2082.1,2081.3,0.00523418]
[1772741753260,0.57055886,2081.7,2081.3,0.00523418]
[1772741753663,0.86505483,2081.5,2081.3,0.00523418]
[1772741753861,0.87044739,2081.5,2081.2,0.46490289]
[1772741754057,0.00539256,2081.5,2081.2,0.46490289]
[1772741754262,0.86505483,2081.4,2081.2,0.46490289]
[1772741754462,0.86505483,2081.4,2081.0,67.627]
[1772741754663,0.60316944,2081.5,2081.0,67.627]
[1772741754862,0.87044739,2081.5,2081.1,0.00437469]
[1772741755061,0.6009821,2081.5,2081.1,0.00437469]
[1772741755263,0.86505483,2081.4,2081.1,0.00437469]
[1772741755463,0.86505483,2081.4,2081.0,67.63145622]
[1772741755666,0.6009821,2081.5,2081.0,67.63145622]
[1772741755958,0.86505483,2081.4,2081.0,67.63145622]
[1772741756966,0.86505483,2081.3,2081.1,0.00193484]
[1772741757266,0.60220202,2081.5,2081.1,0.00193484]
[1772741757461,0.60220202,2081.5,2081.0,26.41931197]
[1772741757668,0.59680946,2081.2,2080.8,0.00193484]
[1772741757863,0.59680946,2081.2,2080.6,0.00193484]
[1772741758268,0.59680946,2081.2,2080.5,26.842]
[1772741758560,1.46186429,2080.6,2080.2,0.00193484]
[1772741758769,0.59680946,2080.6,2080.2,0.00193484]
[1772741759170,0.86505483,2080.4,2080.2,0.00193484]
[1772741759563,0.86505483,2080.3,2080.2,0.00584265]
[1772741759862,0.59770289,2081.0,2080.2,3.04755684]
[1772741760067,0.70449001,2080.7,2080.2,3.04755684]
[1772741760569,0.59769387,2081.4,2080.1,66.37095848]
[1772741760870,0.59769387,2081.2,2080.2,0.00299087]
[1772741761170,0.59637759,2081.1,2080.2,0.00299087]
[1772741761371,0.59637759,2081.4,2080.3,0.00299087]
[1772741761768,4.2427243,2082.6,2080.8,0.3756418]
[1772741762063,0.5648086,2082.9,2081.4,0.3756418]
[1772741762367,0.5648086,2082.3,2081.6,0.3756418]
[1772741762768,0.09363844,2082.0,2081.6,0.3756418]
[1772741762971,0.57017282,2082.3,2081.6,0.38177645]
[1772741763268,0.57017282,2082.3,2081.6,0.00613465]
[1772741763269,0.5648086,2082.0,2081.6,0.00613465]
[1772741763767,0.57017282,2082.3,2081.6,0.37416499]
[1772741764569,0.00536422,2082.3,2081.6,0.37416499]
[1772741764767,0.00536422,2082.3,2081.6,6.36598239]
[1772741764967,0.00536422,2082.3,2081.7,0.36711166]
[1772741765168,0.5648086,2082.5,2081.8,0.36711166]
[1772741766177,0.5648086,2082.5,2081.7,40.8]
[1772741766178,0.56904627,2082.5,2081.7,40.8]
[1772741766775,0.56904627,2082.5,2081.6,0.00613465]
[1772741766972,0.56904627,2082.5,2081.6,0.37324631]
[1772741767771,0.56904627,2082.5,2081.6,0.00613465]
[1772741768474,0.56904627,2082.5,2081.2,5.9918174]
[1772741768675,0.56904627,2082.5,2081.1,33.29937618]
[1772741768676,0.5648086,2082.3,2081.1,33.29937618]
[1772741768874,0.5648086,2081.9,2081.1,26.945]
[1772741769578,0.5648086,2081.9,2081.1,26.94992707]
[1772741769981,0.5648086,2081.9,2081.1,0.00492707]
[1772741771688,0.5648086,2081.7,2080.7,26.957]
[1772741771886,0.5648086,2081.5,2080.7,26.957]
[1772741772688,0.5648086,2081.5,2080.7,26.96154158]
[1772741772887,0.5648086,2081.5,2080.7,27.35470461]
[1772741773286,0.5648086,2081.3,2080.7,0.00454158]
[1772741773883,0.24023,2081.2,2080.7,0.00454158]
[1772741774188,0.5648086,2081.1,2080.3,27.37403977]
[1772741774387,0.5648086,2081.1,2080.3,26.98]
[1772741774887,0.24023,2081.2,2079.5,3.04719882]
[1772741774888,0.5648086,2080.7,2079.9,0.39403977]
[1772741775085,0.56848503,2080.7,2079.9,0.39873133]
[1772741775389,0.56848503,2080.7,2080.1,0.39403977]
[1772741775390,0.00367643,2080.7,2080.1,0.39403977]
[1772741776088,0.5648086,2081.0,2080.1,0.39403977]
[1772741776884,0.57004054,2081.0,2080.1,0.39403977]
[1772741777588,0.5648086,2080.8,2080.1,0.39403977]
[1772741777783,0.5648086,2080.8,2080.0,26.993]
[1772741778891,0.5648086,2080.6,2079.9,0.00469156]
[1772741779698,5.91559194,2081.0,2079.2,6.2322774]
[1772741779699,0.5648086,2080.4,2079.3,0.37555205]
[1772741780189,0.5648086,2080.4,2079.5,0.37213904]
[1772741780593,0.5648086,2080.4,2079.5,0.37599702]
[1772741780892,0.5648086,2080.7,2079.7,0.37213904]
[1772741781488,0.5648086,2080.7,2079.5,0.00385798]
[1772741781489,0.5648086,2080.7,2079.5,0.37599702]
[1772741781691,0.5648086,2080.5,2079.5,0.37599702]
[1772741782491,0.5648086,2080.9,2079.7,0.36541916]
[1772741782695,0.5648086,2080.9,2079.9,0.36541916]
[1772741785497,0.5648086,2080.7,2079.9,0.36541916]
[1772741785704,0.5648086,2080.7,2079.8,27.048]
[1772741786895,0.5648086,2080.7,2079.8,27.41419961]
[1772741787092,0.5648086,2080.7,2079.9,0.36619961]
[1772741787899,0.57004054,2081.0,2080.0,0.36619961]
[1772741788588,0.57004054,2081.0,2079.9,0.24037]
[1772741788589,0.00523194,2081.0,2080.2,0.36697503]
[1772741788992,3.99573749,2082.1,2080.2,0.36697503]
[1772741788993,0.59460302,2081.7,2080.5,0.24031]
[1772741789192,0.59460302,2081.7,2080.7,0.3669833]
[1772741789390,0.24018,2081.6,2080.2,5.9918174]
[1772741789595,0.59460302,2081.5,2080.5,0.3669833]
[1772741789995,0.59870065,2081.5,2080.5,0.3669833]
[1772741790399,0.59602243,2081.3,2080.3,68.24887305]
[1772741790698,0.59602243,2081.3,2080.3,27.44887305]
[1772741791601,0.59602243,2081.3,2080.4,0.36487305]
[1772741795505,0.24021,2081.4,2079.7,0.35398306]
[1772741795506,0.59602243,2080.9,2079.7,0.35398306]
[1772741795705,0.59602243,2080.9,2079.7,41.15398306]
[1772741796002,0.59602243,2080.9,2079.8,0.35398306]
[1772741796202,0.59602243,2080.7,2079.8,0.35398306]
[1772741797601,0.59602243,2080.8,2079.9,0.24038]
[1772741797806,0.59602243,2081.2,2080.0,0.35493759]
[1772741798010,0.59602243,2081.0,2079.9,0.35322529]
[1772741799105,0.59602243,2080.8,2079.9,0.35322529]
[1772741800506,0.59602243,2080.8,2080.0,0.35370003]
[1772741800712,0.59602243,2080.8,2080.2,0.35370003]
[1772741801113,0.59602243,2081.3,2080.3,0.35370003]
[1772741802002,0.24023,2081.2,2080.3,0.35370003]
[1772741802209,0.59602243,2081.1,2080.2,6.34544793]
[1772741803911,0.59602243,2081.1,2080.3,0.35139954]
[1772741804106,0.59602243,2081.1,2080.4,0.35139954]
[1772741807817,0.59602243,2081.4,2080.4,0.35139954]
[1772741808012,0.59602243,2081.4,2080.6,0.34456774]
[1772741808212,0.59602243,2081.4,2080.8,0.34456774]
[1772741808614,0.00409763,2081.5,2080.8,0.34456774]
[1772741808814,0.00409763,2081.5,2080.9,0.34456774]
[1772741815121,0.60012006,2081.5,2080.6,6.33569501]
[1772741815314,0.60012006,2081.5,2080.7,0.34387761]
[1772741816823,0.60012006,2081.5,2080.8,0.34392008]
[1772741817022,0.00409763,2081.5,2080.8,0.34392008]
[1772741817620,0.60012006,2081.5,2080.8,0.34392008]
[1772741818122,0.60012006,2081.5,2080.6,33.37120138]
[1772741819021,0.60012006,2081.5,2080.7,0.34238398]
[1772741820719,0.00409763,2081.5,2080.7,9.38137048]
[1772741820925,0.00409763,2081.5,2081.1,0.34542267]
[1772741821126,0.56327789,2081.7,2081.1,0.351448]
[1772741821916,12.39322268,2082.6,2081.1,0.351448]
[1772741821917,0.56327789,2083.0,2082.0,0.23997034]
[1772741822121,0.5669543,2083.0,2082.2,4.22930351]
[1772741822322,0.5669543,2083.0,2082.3,0.23997034]
[1772741822820,0.56327789,2083.2,2082.4,0.23997034]
[1772741823016,0.56327789,2083.2,2082.5,0.23997034]
[1772741823622,0.56327789,2083.2,2082.2,3.98933317]
[1772741823818,0.56327789,2084.1,2083.1,3.0471691]
[1772741824024,0.00595911,2084.1,2083.8,0.23485533]
[1772741824225,0.56327789,2084.7,2084.0,3.28202443]
[1772741824529,0.56327789,2084.7,2084.1,0.23485533]
[1772741825128,0.56666857,2084.7,2084.1,0.23485533]
[1772741825627,0.56666857,2084.7,2083.7,0.23485533]
[1772741825821,7.47777836,2087.5,2085.3,0.12098667]
[1772741826027,0.56327789,2087.2,2086.1,0.12098667]
[1772741826223,0.56327789,2087.2,2086.0,3.0471691]
[1772741826224,0.56327789,2087.2,2086.5,3.0471691]
[1772741826432,0.38762456,2087.1,2086.5,3.16815577]
[1772741826628,0.38762456,2087.2,2086.9,3.0471691]
[1772741826830,0.56327789,2087.1,2086.3,3.16815577]
[1772741827123,0.56327789,2087.1,2085.8,3.0471691]
[1772741827328,0.56327789,2087.1,2085.9,26.422]
[1772741827928,0.56327789,2087.1,2085.9,26.42672282]
[1772741828533,0.56327789,2086.9,2085.9,26.41672282]
[1772741829038,0.56327789,2086.7,2085.9,26.41672282]
[1772741829330,0.56327789,2086.7,2085.9,0.00472282]
[1772741829535,0.56327789,2086.7,2086.0,26.496]
[1772741829936,0.56327789,2086.7,2085.9,0.00472282]
[1772741830138,0.56327789,2086.5,2086.0,26.549]
[1772741830333,0.56327789,2086.5,2085.9,26.56972282]
[1772741830535,0.00533436,2087.2,2085.9,0.00472282]
[1772741830536,0.56327789,2086.3,2085.9,0.00472282]
[1772741831030,0.56327789,2086.1,2085.8,26.424]
[1772741831539,0.56327789,2086.5,2085.7,0.1085599]
[1772741831738,0.56327789,2086.5,2085.8,26.486]
[1772741832037,0.56327789,2086.5,2085.4,4.24471191]
[1772741832038,0.56327789,2086.5,2085.4,40.8]
[1772741832336,0.56327789,2086.5,2085.5,26.525]
[1772741833031,0.56327789,2086.5,2085.6,26.595]
[1772741833230,0.56327789,2086.3,2084.9,0.11351685]
[1772741833435,0.56327789,2085.9,2084.9,26.415]
[1772741833637,0.56327789,2085.5,2084.5,0.11826347]
[1772741833835,0.56327789,2085.5,2084.6,26.038]
[1772741834139,6.13709,2085.6,2083.5,14.2982]
[1772741834140,0.56327789,2085.1,2084.1,0.12013316]
[1772741834338,0.56327789,2084.7,2083.8,25.688]
[1772741834532,0.56327789,2084.7,2083.7,25.513]
[1772741834730,0.56327789,2084.5,2083.7,25.551]
[1772741834929,0.56327789,2084.5,2083.6,25.587]
[1772741835332,0.56327789,2084.5,2083.6,0.00387245]
[1772741835930,0.56327789,2084.5,2083.6,25.40487245]
[1772741837543,0.56327789,2084.5,2083.6,0.00387245]
[1772741837744,0.23984,2084.6,2083.2,0.12391146]
[1772741837745,0.56327789,2084.1,2083.2,25.727]
[1772741838339,0.56327789,2084.1,2083.1,40.8]
[1772741838642,0.56327789,2084.1,2083.2,25.839]
[1772741839343,0.56327789,2084.1,2083.3,0.12712064]
[1772741841141,0.56327789,2084.1,2083.1,40.80619052]
[1772741841142,0.56327789,2084.1,2083.1,0.00619052]
[1772741841345,0.56327789,2083.7,2082.6,25.96]
[1772741841638,0.56327789,2083.7,2082.4,0.13557045]
[1772741841943,0.56327789,2083.7,2082.5,26.046]
[1772741842543,0.56327789,2083.7,2082.5,26.04961954]
[1772741842943,0.56327789,2083.7,2082.5,0.00361954]
[1772741843143,0.56327789,2083.7,2082.6,26.177]
[1772741844145,0.56327789,2083.7,2082.5,0.13985408]
[1772741844345,0.56327789,2083.7,2082.6,26.327]
[1772741844845,0.56327789,2083.7,2082.6,26.368]
[1772741845242,0.23993,2083.8,2082.5,0.00361954]
[1772741845243,0.56327789,2083.5,2082.5,0.00361954]
[1772741845539,0.56327789,2083.3,2082.5,0.00361954]
[1772741848041,0.23998,2083.4,2082.0,4.48484191]
[1772741848042,0.56327789,2083.1,2082.0,26.15]
[1772741848343,0.56327789,2083.1,2082.0,26.28533233]
[1772741848538,0.56327789,2083.1,2082.1,26.233]
[1772741848744,0.53909078,2082.9,2081.8,0.13533233]
[1772741848947,0.53909078,2082.9,2081.8,26.40667246]
[1772741849145,0.53909078,2082.9,2081.9,0.13527863]
[1772741850637,0.58986504,2083.4,2082.0,0.13643356]
[1772741851048,0.58986504,2083.2,2082.1,26.478]
[1772741852048,0.58986504,2083.2,2082.0,0.13643356]
[1772741852243,0.58986504,2083.2,2082.1,26.57]
[1772741852444,0.58986504,2083.2,2082.1,26.70696465]
[1772741852650,0.58986504,2083.2,2082.1,0.13696465]
[1772741852844,0.58986504,2083.2,2082.1,26.75896465]
[1772741854049,0.58986504,2083.0,2081.9,0.13643602]
[1772741854347,0.58986504,2083.0,2081.9,26.84743602]
[1772741854544,0.58986504,2083.0,2081.9,0.13643602]
[1772741854748,0.58986504,2083.0,2081.9,26.88343602]
[1772741855552,0.58986504,2083.0,2082.0,26.791]
[1772741855846,0.58986504,2083.0,2082.1,0.13643602]
[1772741856149,0.58986504,2083.0,2082.3,3.1792436]
[1772741856652,0.58986504,2083.0,2082.4,0.13654883]
[1772741857450,0.58986504,2083.4,2082.4,0.13654883]
[1772741857650,0.58986504,2083.4,2082.7,0.13654883]
[1772741857952,0.58986504,2083.4,2082.6,3.04269477]
[1772741857953,0.0056317,2083.5,2082.9,3.18088031]
[1772741858152,0.0056317,2083.5,2082.9,30.08688031]
[1772741858755,0.0056317,2083.5,2082.9,30.11288031]
[1772741859058,0.58986504,2083.9,2083.2,3.17524861]
[1772741859251,0.58986504,2083.9,2083.2,3.04269477]
[1772741859450,0.58986504,2084.5,2083.3,0.13255384]
[1772741859652,0.58986504,2084.5,2083.5,3.04269477]
[1772741860053,0.5959793,2084.5,2083.5,3.04768038]
[1772741860453,0.5959793,2084.5,2083.5,0.13060066]
[1772741860654,0.5959793,2084.5,2083.5,0.00498561]
[1772741862455,0.58986504,2084.3,2083.5,0.00498561]
[1772741864253,0.58986504,2084.1,2083.5,0.00498561]
[1772741867162,0.58986504,2083.9,2083.0,3.92789243]
[1772741867456,0.58986504,2083.9,2083.1,0.12829462]
[1772741868051,0.58986504,2083.7,2083.1,0.1333886]
[1772741868256,0.58986504,2083.5,2083.1,0.00509398]
[1772741868456,0.58986504,2083.5,2082.7,4.05763768]
[1772741868760,0.58986504,2083.5,2082.8,3.92789243]
[1772741868958,0.58986504,2083.5,2082.8,4.05763768]
[1772741869153,0.58986504,2084.0,2083.0,0.12974525]
[1772741869353,0.58986504,2083.6,2083.0,0.00426795]
[1772741870854,0.58986504,2083.6,2083.0,0.13249378]
[1772741871158,0.58986504,2083.6,2083.0,27.17549378]
[1772741871352,0.00611426,2084.5,2083.1,0.12822583]
[1772741871556,9.96397605,2085.3,2083.1,0.12822583]
[1772741871557,0.59759142,2085.5,2084.4,9.02613514]
[1772741871750,0.57642951,2085.2,2084.8,3.04269477]
[1772741871949,0.57642951,2085.2,2084.5,33.05360228]
[1772741871950,0.57642951,2085.2,2084.6,3.95727442]
[1772741872154,0.57642951,2085.2,2084.6,3.979338]
[1772741872355,0.57642951,2085.2,2084.7,0.02206358]
[1772741872557,0.58103668,2085.2,2084.8,5.71452448]
[1772741872751,10.93603668,2085.2,2084.9,5.71452448]
[1772741872952,10.93603668,2085.2,2085.0,5.71452448]
[1772741873157,10.35960717,2085.2,2084.7,0.02560209]
[1772741873357,10.35960717,2085.2,2084.8,5.70871291]
[1772741873558,10.35960717,2085.2,2084.9,5.70871291]
[1772741873860,10.35960717,2085.2,2084.7,0.02560209]
[1772741874058,0.00460717,2085.2,2084.9,0.03256762]
[1772741874258,0.58986504,2085.5,2085.0,5.70797275]
[1772741874555,5.43536418,2085.5,2085.1,5.69879397]
[1772741874756,5.43536418,2085.5,2085.2,5.69879397]
[1772741874957,5.43536418,2085.5,2084.8,6.99996919]
[1772741875153,0.59759142,2087.5,2085.4,8.94052477]
[1772741875354,0.59759142,2086.9,2085.9,3.04269477]
[1772741875657,0.59759142,2086.7,2086.0,5.70838453]
[1772741875857,0.59759142,2086.5,2085.9,27.036]
[1772741876065,0.59759142,2086.5,2086.0,5.70821688]
[1772741876356,0.60114351,2086.5,2085.9,27.036]
[1772741876559,5.43536418,2086.4,2085.9,27.036]
[1772741876752,0.00355209,2086.5,2086.0,5.69489944]
[1772741876956,0.00355209,2086.5,2086.1,27.057]
[1772741877352,0.00355209,2086.5,2085.9,3.04269477]
[1772741877557,6.03759806,2086.5,2086.0,27.066]
[1772741878159,6.03759806,2086.5,2085.9,3.04269477]
[1772741878361,6.03759806,2086.5,2086.0,27.075]
[1772741878660,6.03759806,2086.5,2086.1,27.081]
[1772741879262,8.43679806,2086.5,2086.1,27.086]
[1772741879857,0.59891417,2086.4,2085.5,43.84269477]
[1772741880057,5.43536418,2086.3,2085.6,32.76612288]
[1772741880264,6.03592559,2086.3,2085.5,43.84269477]
[1772741880455,6.03592559,2086.3,2085.7,27.095]
[1772741880654,6.03592559,2086.3,2085.5,40.8]
[1772741880655,0.60056141,2086.2,2085.8,27.1]
[1772741880860,6.03592559,2086.3,2085.8,27.1]
[1772741881061,6.03592559,2086.3,2085.5,40.8]
[1772741881569,0.60056141,2086.1,2085.6,27.108]
[1772741882166,0.59992131,2085.9,2085.4,27.113]
[1772741882360,0.59992131,2085.9,2084.7,0.24335851]
[1772741882572,0.59992131,2085.7,2084.8,27.117]
[1772741882961,0.59992131,2085.7,2084.7,0.00353851]
[1772741882962,0.59992131,2085.5,2084.9,27.12]
[1772741883762,4.90919418,2085.4,2085.0,0.23979]
[1772741883966,0.59992131,2085.9,2085.0,0.23979]
[1772741884266,0.00355209,2086.5,2085.8,0.23969]
[1772741884462,0.00355209,2086.5,2085.9,8.70325708]
[1772741884670,0.00355209,2086.5,2086.0,5.67053979]
[1772741884869,0.00355209,2086.5,2086.0,27.138]
[1772741885265,0.00355209,2086.5,2086.1,27.147]
[1772741885470,0.00355209,2086.5,2086.2,27.15]
[1772741885663,0.00355209,2086.5,2086.2,0.004187]
[1772741885869,0.00355209,2086.5,2086.3,27.153]
[1772741886071,0.00355209,2086.5,2086.2,0.004187]
[1772741886270,0.00355209,2086.5,2086.4,27.157]
[1772741886464,0.60230761,2089.1,2086.9,6.13316]
[1772741886669,0.60230761,2089.1,2087.3,0.23953]
[1772741886868,0.60230761,2088.9,2087.4,67.758]
[1772741887167,0.60230761,2088.9,2087.4,40.8]
[1772741887369,0.60230761,2088.5,2087.5,26.978]
[1772741887769,0.60230761,2088.2,2087.5,26.978]
[1772741887964,0.60230761,2088.2,2087.3,0.23953]
[1772741888164,0.60230761,2088.2,2086.9,3.89475073]
[1772741888165,0.60230761,2088.2,2086.8,3.89475073]
[1772741888364,0.60230761,2088.2,2086.9,46.44624214]
[1772741888572,0.60065042,2088.1,2087.0,27.02]
[1772741889572,0.60065042,2088.4,2087.1,0.23955]
[1772741889975,0.60065042,2088.4,2087.2,27.056]
[1772741890172,0.60586945,2088.3,2087.2,27.056]
[1772741890365,0.60586945,2088.3,2087.3,27.071]
[1772741890570,0.60586945,2088.3,2087.1,0.23955]
[1772741890770,0.60586945,2088.1,2087.4,27.077]
[1772741890971,0.60586945,2088.1,2086.9,40.8]
[1772741891268,0.60586945,2087.8,2087.0,27.091]
[1772741891474,0.60586945,2087.8,2086.5,0.23961]
[1772741891674,0.60586945,2087.6,2086.6,27.104]
[1772741892272,0.60634726,2087.4,2086.2,0.004187]
[1772741892477,0.61200679,2087.4,2086.2,0.004187]
[1772741892679,0.60634726,2087.2,2086.3,27.124]
[1772741892976,0.60634726,2087.2,2086.4,27.129]
[1772741893378,0.60634726,2087.2,2086.2,0.004187]
[1772741893672,0.60634726,2086.9,2084.7,10.02306591]
[1772741893872,0.60634726,2086.2,2084.9,0.2398]
[1772741894072,0.60634726,2086.2,2085.0,5.65816191]
[1772741894273,0.60634726,2086.2,2085.1,0.23978]
[1772741894477,0.60634726,2086.2,2085.1,0.24528402]
[1772741894673,3.00554726,2086.2,2085.2,27.164]
[1772741894878,0.60174022,2086.1,2085.2,27.164]
[1772741895078,0.60174022,2086.7,2085.2,27.164]
[1772741895372,0.60174022,2086.5,2085.2,27.164]
[1772741895880,0.60174022,2086.3,2085.2,27.164]
[1772741896776,0.60174022,2086.3,2085.1,0.24528402]
[1772741896977,0.60174022,2086.3,2085.3,27.203]
[1772741897481,3.00099414,2086.2,2085.3,27.203]
[1772741897674,0.60179414,2086.2,2085.3,27.203]
[1772741897874,3.00099414,2086.2,2085.3,27.203]
[1772741898173,3.00099414,2086.2,2085.4,40.8]
[1772741898373,0.60017079,2086.1,2085.5,27.223]
[1772741898774,2.3992,2086.1,2085.5,27.223]
[1772741899076,0.60017079,2087.0,2085.7,0.23971]
[1772741899277,0.60017079,2087.0,2085.9,0.23969]
[1772741899474,0.60017079,2087.0,2086.0,5.68593564]
[1772741899675,0.60017079,2087.0,2086.1,27.235]
[1772741899974,1.8942,2086.9,2086.2,5.69163021]
[1772741900176,1.8942,2086.9,2086.2,0.23965]
[1772741900377,0.60014637,2087.3,2086.6,0.2396]
[1772741900577,1.38597,2087.2,2086.6,0.24383474]
[1772741900773,0.60014637,2087.3,2086.6,0.24383474]
[1772741901078,1.38597,2087.2,2086.7,5.69999282]
[1772741901285,0.00565953,2087.4,2086.8,5.71300263]
[1772741901579,0.6058059,2087.4,2086.9,5.47294409]
[1772741901874,0.57054657,2088.0,2087.0,27.257]
[1772741902078,0.57054657,2087.8,2087.0,27.47664408]
[1772741902477,0.57054657,2088.0,2087.2,0.21964408]
[1772741902676,0.57054657,2088.9,2087.3,0.21964408]
[1772741902872,0.57652292,2088.9,2087.3,0.21964408]
[1772741903074,1.29506657,2088.1,2087.3,0.21964408]
[1772741903281,0.57054657,2088.1,2087.3,0.21964408]
[1772741903481,0.72452,2087.7,2087.3,0.21964408]
[1772741903682,0.00597635,2088.9,2088.0,0.21964408]
[1772741903683,6.35e-06,2088.9,2088.0,0.21964408]
[1772741903974,0.57055292,2088.9,2088.1,31.41803511]
[1772741904179,0.57055292,2088.9,2088.1,27.273]
[1772741904375,0.57055292,2088.9,2088.2,0.21604491]
[1772741904877,0.57055292,2088.9,2088.2,0.21957329]
[1772741905082,0.57055292,2088.9,2088.3,27.284]
[1772741905276,6.35e-06,2088.9,2088.3,27.284]
[1772741905476,6.35e-06,2088.9,2088.3,27.50004491]
[1772741906071,6.35e-06,2088.9,2088.2,0.00352838]
[1772741906280,6.35e-06,2088.9,2087.7,0.21268034]
[1772741906680,6.35e-06,2088.9,2087.8,0.21268034]
[1772741906876,6.35e-06,2088.9,2087.9,0.21268034]
[1772741907081,6.35e-06,2088.9,2088.1,0.21268034]
[1772741907277,6.35e-06,2088.9,2088.2,27.51468034]
[1772741907675,6.35e-06,2088.9,2088.3,0.21268034]
[1772741908281,6.35e-06,2088.9,2088.4,27.308]
[1772741908685,6.35e-06,2088.9,2088.1,0.00588824]
[1772741908885,6.35e-06,2088.9,2088.2,27.313]